[Event "*** MasterClass Titled Tuesday Blitz"]
[Site "Chess.com"]
[Date "2017.11.07"]
[Round "6"]
[White "Salem-AR"]
[Black "Tobi-Wan-Kenobi"]
[Result "0-1"]
[WhiteElo "2791"]
[BlackElo "2495"]
[TimeControl "180+2"]
[EndTime "15:30:00 PST"]
[Termination "Tobi-Wan-Kenobi won by resignation"]

1. d4 {[%clk 0:03:01.9]} 1... d5 {[%clk 0:02:59.4]} 2. c4 {[%clk 0:03:03.4]}
2... c6 {[%clk 0:03:00.6]} 3. Nf3 {[%clk 0:03:04.1]} 3... Nf6 {[%clk 0:03:01.2]}
4. Nc3 {[%clk 0:03:05.7]} 4... dxc4 {[%clk 0:03:01.8]} 5. e4 {[%clk 0:03:07.1]}
5... b5 {[%clk 0:03:00.5]} 6. e5 {[%clk 0:03:08.7]} 6... Nd5 {[%clk 0:02:55.7]}
7. a4 {[%clk 0:03:10.3]} 7... e6 {[%clk 0:02:54.9]} 8. Be2 {[%clk 0:03:11.9]}
8... Be7 {[%clk 0:02:50]} 9. O-O {[%clk 0:03:13.1]} 9... Bb7 {[%clk 0:02:44.5]}
10. Ne4 {[%clk 0:03:14]} 10... Nd7 {[%clk 0:02:43.9]} 11. Bg5 {[%clk 0:03:12.9]}
11... O-O {[%clk 0:02:27.9]} 12. Bxe7 {[%clk 0:03:14.4]} 12... Qxe7 {[%clk
0:02:26.2]} 13. Nd6 {[%clk 0:03:16.3]} 13... Ba6 {[%clk 0:02:04.9]} 14. Qd2
{[%clk 0:03:09.6]} 14... b4 {[%clk 0:01:54.9]} 15. Bxc4 {[%clk 0:03:03.9]} 15...
Bxc4 {[%clk 0:01:53.2]} 16. Nxc4 {[%clk 0:03:05.8]} 16... c5 {[%clk 0:01:53.6]}
17. Rac1 {[%clk 0:03:05.3]} 17... cxd4 {[%clk 0:01:51.7]} 18. Nxd4 {[%clk
0:03:04.9]} 18... Rfc8 {[%clk 0:01:45]} 19. Nf5 {[%clk 0:02:59.8]} 19... exf5
{[%clk 0:01:29.9]} 20. Qxd5 {[%clk 0:02:59.7]} 20... Rab8 {[%clk 0:01:17]} 21.
Rfd1 {[%clk 0:02:55.9]} 21... Nf8 {[%clk 0:01:11.2]} 22. Nd6 {[%clk 0:02:55.4]}
22... Rxc1 {[%clk 0:01:09.8]} 23. Rxc1 {[%clk 0:02:57.3]} 23... Ne6 {[%clk
0:01:01.7]} 24. g3 {[%clk 0:02:16]} 24... h5 {[%clk 0:01:00.3]} 25. Rc6 {[%clk
0:01:49.7]} 25... f4 {[%clk 0:00:56.7]} 26. a5 {[%clk 0:01:22.1]} 26... fxg3
{[%clk 0:00:55.5]} 27. hxg3 {[%clk 0:01:24]} 27... h4 {[%clk 0:00:55.4]} 28. Nf5
{[%clk 0:01:24.3]} 28... Qg5 {[%clk 0:00:53.1]} 29. Nxh4 {[%clk 0:01:25.8]}
29... Rd8 {[%clk 0:00:49.4]} 30. Rd6 {[%clk 0:01:26.7]} 30... Rxd6 {[%clk
0:00:49.2]} 31. Qxd6 {[%clk 0:01:28.6]} 31... Qc1+ {[%clk 0:00:48.5]} 32. Kg2
{[%clk 0:01:28.3]} 32... Qxb2 {[%clk 0:00:49.9]} 33. a6 {[%clk 0:01:13.1]} 33...
Qd4 {[%clk 0:00:47.5]} 34. Qb8+ {[%clk 0:01:01.6]} 34... Kh7 {[%clk 0:00:48.2]}
35. Nf3 {[%clk 0:01:02.2]} 35... Qc5 {[%clk 0:00:33.7]} 36. Qb7 {[%clk 0:01:03]}
36... Kg6 {[%clk 0:00:22]} 37. Qe4+ {[%clk 0:01:01.2]} 37... Kh6 {[%clk
0:00:21.3]} 38. Qh4+ {[%clk 0:00:52.9]} 38... Kg6 {[%clk 0:00:22.2]} 39. g4
{[%clk 0:00:54]} 39... Nf4+ {[%clk 0:00:18.9]} 40. Kh2 {[%clk 0:00:48]} 40... f6
{[%clk 0:00:14.1]} 41. Kg3 {[%clk 0:00:30.9]} 41... Ne2+ {[%clk 0:00:14.4]} 42.
Kh2 {[%clk 0:00:31.6]} 42... Nf4 {[%clk 0:00:16.3]} 43. Qg3 {[%clk 0:00:27.6]}
43... Nd3 {[%clk 0:00:17.4]} 44. Qh4 {[%clk 0:00:29.3]} 44... Qxf2+ {[%clk
0:00:17.6]} 45. Qxf2 {[%clk 0:00:29.8]} 45... Nxf2 {[%clk 0:00:19.5]} 46. e6
{[%clk 0:00:31.4]} 46... Ne4 {[%clk 0:00:18.2]} 47. Nh4+ {[%clk 0:00:31]} 47...
Kh7 {[%clk 0:00:18.5]} 48. Nf5 {[%clk 0:00:25.1]} 48... Kg8 {[%clk 0:00:19.4]}
49. Nd4 {[%clk 0:00:25.7]} 49... Kf8 {[%clk 0:00:19.3]} 50. Kg2 {[%clk
0:00:26.1]} 50... Nc5 {[%clk 0:00:18.9]} 51. Kf3 {[%clk 0:00:26.4]} 51... Nxa6
{[%clk 0:00:19.5]} 52. Ke4 {[%clk 0:00:28.1]} 52... Nc5+ {[%clk 0:00:19.5]} 53.
Kd5 {[%clk 0:00:29.6]} 53... b3 {[%clk 0:00:21.4]} 54. Nf5 {[%clk 0:00:17.3]}
54... b2 {[%clk 0:00:21.5]} 55. e7+ {[%clk 0:00:18.6]} 55... Kf7 {[%clk
0:00:21.1]} 56. Kxc5 {[%clk 0:00:15.3]} 56... b1=Q {[%clk 0:00:20.8]} 57. Kc6
{[%clk 0:00:16.7]} 57... Qe4+ {[%clk 0:00:19.9]} 58. Kd7 {[%clk 0:00:18]} 58...
Qe6+ {[%clk 0:00:20.1]} 59. Kd8 {[%clk 0:00:18.5]} 59... Qd5+ {[%clk 0:00:19]}
60. Kc7 {[%clk 0:00:18]} 60... Qxf5 {[%clk 0:00:19.8]} 61. gxf5 {[%clk 0:00:18]}
61... Kxe7 {[%clk 0:00:21]} 62. Kc6 {[%clk 0:00:19.9]} 62... a5 {[%clk
0:00:19.9]} 63. Kb5 {[%clk 0:00:21.2]} 63... Kd6 {[%clk 0:00:21.8]} 0-1

[Event "*** MasterClass Titled Tuesday Blitz"]
[Site "Chess.com"]
[Date "2017.11.07"]
[Round "6"]
[White "Vamostodorecto"]
[Black "saikrishnaReturns"]
[Result "1/2-1/2"]
[WhiteElo "2295"]
[BlackElo "2474"]
[TimeControl "180+2"]
[EndTime "15:30:07 PST"]
[Termination "Game drawn by stalemate"]

1. d4 {[%clk 0:03:01.9]} 1... Nf6 {[%clk 0:03:00.5]} 2. c4 {[%clk 0:03:03.4]}
2... g6 {[%clk 0:03:01.8]} 3. Nc3 {[%clk 0:03:03.8]} 3... Bg7 {[%clk 0:03:03.7]}
4. e4 {[%clk 0:03:04.1]} 4... d6 {[%clk 0:03:05.1]} 5. Be2 {[%clk 0:03:05.6]}
5... O-O {[%clk 0:03:06.3]} 6. Nf3 {[%clk 0:03:07.2]} 6... e5 {[%clk 0:03:07.2]}
7. O-O {[%clk 0:03:08.5]} 7... Nc6 {[%clk 0:03:08.4]} 8. d5 {[%clk 0:03:07.8]}
8... Ne7 {[%clk 0:03:09.7]} 9. Ne1 {[%clk 0:03:06.1]} 9... Nd7 {[%clk
0:03:10.6]} 10. Be3 {[%clk 0:03:07.4]} 10... f5 {[%clk 0:03:12.1]} 11. f3 {[%clk
0:03:09]} 11... f4 {[%clk 0:03:13.7]} 12. Bf2 {[%clk 0:03:10.6]} 12... g5 {[%clk
0:03:15.2]} 13. Rc1 {[%clk 0:03:11.3]} 13... Ng6 {[%clk 0:03:09.3]} 14. c5
{[%clk 0:03:10.9]} 14... Nf6 {[%clk 0:03:08.9]} 15. cxd6 {[%clk 0:03:11.5]}
15... cxd6 {[%clk 0:03:10.8]} 16. Nb5 {[%clk 0:03:12.9]} 16... g4 {[%clk
0:03:11.5]} 17. Nc7 {[%clk 0:03:10.3]} 17... g3 {[%clk 0:03:11.9]} 18. Nxa8
{[%clk 0:02:54.4]} 18... Nh5 {[%clk 0:03:11.2]} 19. Kh1 {[%clk 0:02:38.5]} 19...
gxf2 {[%clk 0:03:02.2]} 20. Rxf2 {[%clk 0:02:40.4]} 20... Bf6 {[%clk 0:02:52.4]}
21. Nc7 {[%clk 0:02:35.3]} 21... Bh4 {[%clk 0:02:48.8]} 22. Nd3 {[%clk
0:02:29.2]} 22... Bxf2 {[%clk 0:02:38.5]} 23. Nxf2 {[%clk 0:02:31.1]} 23... Ng3+
{[%clk 0:02:27]} 24. Kg1 {[%clk 0:02:22.9]} 24... Nxe2+ {[%clk 0:02:26]} 25.
Qxe2 {[%clk 0:02:24.8]} 25... Qg5 {[%clk 0:02:25.2]} 26. Ne6 {[%clk 0:02:22.5]}
26... Bxe6 {[%clk 0:02:25]} 27. dxe6 {[%clk 0:02:24.4]} 27... Nh4 {[%clk
0:02:25.7]} 28. Nd3 {[%clk 0:01:53.4]} 28... Re8 {[%clk 0:02:20.9]} 29. Nb4
{[%clk 0:01:47.4]} 29... Rxe6 {[%clk 0:02:19.5]} 30. Rc8+ {[%clk 0:01:45.4]}
30... Kg7 {[%clk 0:02:14.2]} 31. Rc7+ {[%clk 0:01:45.4]} 31... Kh6 {[%clk
0:02:14.9]} 32. Nc2 {[%clk 0:01:08.9]} 32... Rg6 {[%clk 0:02:03.2]} 33. Ne1
{[%clk 0:01:09.4]} 33... Rg7 {[%clk 0:02:04.3]} 34. Rxg7 {[%clk 0:01:06.5]}
34... Kxg7 {[%clk 0:01:55.3]} 35. Qc4 {[%clk 0:01:08.4]} 35... Qe7 {[%clk
0:01:51.9]} 36. b4 {[%clk 0:01:04.6]} 36... Qd8 {[%clk 0:01:52.2]} 37. Nd3
{[%clk 0:00:54.5]} 37... Qb6+ {[%clk 0:01:49.7]} 38. Kf1 {[%clk 0:00:46.1]}
38... Qc6 {[%clk 0:01:39.9]} 39. Nb2 {[%clk 0:00:41.9]} 39... Qb6 {[%clk
0:01:38.7]} 40. Qc3 {[%clk 0:00:24]} 40... Kf6 {[%clk 0:01:23.2]} 41. a4 {[%clk
0:00:24.4]} 41... Qd4 {[%clk 0:01:13.9]} 42. Qxd4 {[%clk 0:00:23.7]} 42... exd4
{[%clk 0:01:15.3]} 43. Nc4 {[%clk 0:00:25.3]} 43... Ke6 {[%clk 0:01:16.3]} 44.
Na5 {[%clk 0:00:25]} 44... d5 {[%clk 0:01:17.6]} 45. Nxb7 {[%clk 0:00:18.2]}
45... dxe4 {[%clk 0:01:10.5]} 46. fxe4 {[%clk 0:00:17.9]} 46... Ke5 {[%clk
0:01:11.9]} 47. Nc5 {[%clk 0:00:18]} 47... Ng6 {[%clk 0:01:03.1]} 48. a5 {[%clk
0:00:17.8]} 48... Ne7 {[%clk 0:01:03.7]} 49. b5 {[%clk 0:00:17.9]} 49... Nc8
{[%clk 0:01:04.8]} 50. b6 {[%clk 0:00:14.7]} 50... axb6 {[%clk 0:01:03.7]} 51.
Nd7+ {[%clk 0:00:16.2]} 51... Kxe4 {[%clk 0:00:48]} 52. axb6 {[%clk 0:00:18.1]}
52... Nd6 {[%clk 0:00:45]} 53. Nc5+ {[%clk 0:00:18.5]} 53... Ke3 {[%clk
0:00:46.2]} 54. b7 {[%clk 0:00:19]} 54... Nxb7 {[%clk 0:00:46.5]} 55. Nxb7
{[%clk 0:00:19.2]} 55... d3 {[%clk 0:00:47.8]} 56. Nd6 {[%clk 0:00:19.9]} 56...
f3 {[%clk 0:00:46.1]} 57. Nc4+ {[%clk 0:00:16.7]} 57... Kd4 {[%clk 0:00:43.8]}
58. Nd2 {[%clk 0:00:15]} 58... fxg2+ {[%clk 0:00:44.3]} 59. Kxg2 {[%clk
0:00:16.9]} 59... Ke3 {[%clk 0:00:45.7]} 60. Nc4+ {[%clk 0:00:17.3]} 60... Kd4
{[%clk 0:00:46.4]} 61. Nd2 {[%clk 0:00:17.6]} 61... Ke3 {[%clk 0:00:47.4]} 62.
Nf1+ {[%clk 0:00:18.3]} 62... Ke2 {[%clk 0:00:47.9]} 63. h4 {[%clk 0:00:18.7]}
63... d2 {[%clk 0:00:36.9]} 64. Nxd2 {[%clk 0:00:18.7]} 64... Kxd2 {[%clk
0:00:38.3]} 65. Kf3 {[%clk 0:00:19.7]} 65... Kd3 {[%clk 0:00:39.7]} 66. Kf4
{[%clk 0:00:20.6]} 66... Kd4 {[%clk 0:00:41.1]} 67. Kf5 {[%clk 0:00:20.9]} 67...
h5 {[%clk 0:00:39.9]} 68. Kg5 {[%clk 0:00:21.7]} 68... Ke5 {[%clk 0:00:40.8]}
69. Kxh5 {[%clk 0:00:23.6]} 69... Kf6 {[%clk 0:00:42.2]} 70. Kg4 {[%clk
0:00:24.6]} 70... Kg7 {[%clk 0:00:43.5]} 71. h5 {[%clk 0:00:26.2]} 71... Kh8
{[%clk 0:00:44.9]} 72. Kg5 {[%clk 0:00:27.5]} 72... Kg8 {[%clk 0:00:46.1]} 73.
Kg6 {[%clk 0:00:28.8]} 73... Kh8 {[%clk 0:00:48]} 74. h6 {[%clk 0:00:30]} 74...
Kg8 {[%clk 0:00:49.9]} 75. h7+ {[%clk 0:00:30.3]} 75... Kh8 {[%clk 0:00:51.8]}
76. Kh6 {[%clk 0:00:31]} 1/2-1/2

[Event "*** MasterClass Titled Tuesday Blitz"]
[Site "Chess.com"]
[Date "2017.11.07"]
[Round "6"]
[White "BergenChessAcademy"]
[Black "Po6Don"]
[Result "1-0"]
[WhiteElo "1682"]
[BlackElo "1940"]
[TimeControl "180+2"]
[EndTime "15:30:11 PST"]
[Termination "BergenChessAcademy won on time"]

1. d4 {[%clk 0:03:01.6]} 1... d5 {[%clk 0:03:00.6]} 2. c4 {[%clk 0:02:58.4]}
2... e5 {[%clk 0:03:01.7]} 3. dxe5 {[%clk 0:02:57.8]} 3... d4 {[%clk 0:03:02.7]}
4. e3 {[%clk 0:02:58.8]} 4... Nc6 {[%clk 0:03:03.4]} 5. exd4 {[%clk 0:02:59.8]}
5... Qxd4 {[%clk 0:03:04.3]} 6. Nc3 {[%clk 0:02:56.3]} 6... Qxe5+ {[%clk
0:02:55.1]} 7. Qe2 {[%clk 0:02:54.5]} 7... Be6 {[%clk 0:02:54.3]} 8. Nf3 {[%clk
0:02:54.2]} 8... Qh5 {[%clk 0:02:48.8]} 9. Bg5 {[%clk 0:02:50.4]} 9... Bb4
{[%clk 0:02:38.4]} 10. O-O-O {[%clk 0:02:21.4]} 10... Bxc3 {[%clk 0:02:36.9]}
11. bxc3 {[%clk 0:02:20.6]} 11... h6 {[%clk 0:02:37.7]} 12. Bf4 {[%clk
0:02:18.7]} 12... Nf6 {[%clk 0:02:30.6]} 13. Nd4 {[%clk 0:02:11.8]} 13... Qa5
{[%clk 0:02:17.5]} 14. Nxe6 {[%clk 0:02:06.6]} 14... Qxc3+ {[%clk 0:02:10.4]}
15. Kb1 {[%clk 0:02:07.7]} 15... Qb4+ {[%clk 0:02:04.1]} 16. Ka1 {[%clk
0:02:07.9]} 16... Qc3+ {[%clk 0:01:57.3]} 17. Kb1 {[%clk 0:02:08.7]} 17... Qb4+
{[%clk 0:01:39.5]} 18. Qb2 {[%clk 0:01:54.3]} 18... fxe6 {[%clk 0:01:27.7]} 19.
Qxb4 {[%clk 0:01:47]} 19... Nxb4 {[%clk 0:01:28.2]} 20. f3 {[%clk 0:01:47.3]}
20... c6 {[%clk 0:01:18.3]} 21. Be5 {[%clk 0:01:33.3]} 21... Rd8 {[%clk
0:01:07.8]} 22. Be2 {[%clk 0:01:31.7]} 22... Kf7 {[%clk 0:01:02.8]} 23. g4
{[%clk 0:01:07.9]} 23... Ke7 {[%clk 0:00:48.7]} 24. Bc7 {[%clk 0:01:00]} 24...
Rd7 {[%clk 0:00:33.4]} 25. Rxd7+ {[%clk 0:01:00.3]} 25... Kxd7 {[%clk
0:00:34.4]} 26. Be5 {[%clk 0:00:59.9]} 26... Rd8 {[%clk 0:00:31.1]} 27. h4
{[%clk 0:00:59.1]} 27... Ke7 {[%clk 0:00:28.2]} 28. g5 {[%clk 0:01:00.2]} 28...
Ne8 {[%clk 0:00:25.9]} 29. f4 {[%clk 0:00:25.1]} 29... Rd2 {[%clk 0:00:23]} 30.
Bh5 {[%clk 0:00:25.9]} 30... Nd3 {[%clk 0:00:22.3]} 31. Bc3 {[%clk 0:00:20.9]}
31... Rf2 {[%clk 0:00:18.5]} 32. Bxe8 {[%clk 0:00:21.8]} 32... Kxe8 {[%clk
0:00:18.3]} 33. Bxg7 {[%clk 0:00:23.3]} 33... hxg5 {[%clk 0:00:14.4]} 34. fxg5
{[%clk 0:00:23.3]} 34... Kf7 {[%clk 0:00:15.2]} 35. Bc3 {[%clk 0:00:21.7]} 35...
Kg6 {[%clk 0:00:13.9]} 36. h5+ {[%clk 0:00:21.9]} 36... Kxg5 {[%clk 0:00:14.2]}
37. h6 {[%clk 0:00:23.8]} 37... e5 {[%clk 0:00:12.3]} 38. h7 {[%clk 0:00:24]}
38... Rf8 {[%clk 0:00:10.8]} 39. h8=Q {[%clk 0:00:24]} 39... Rxh8 {[%clk
0:00:09.6]} 40. Rxh8 {[%clk 0:00:25.6]} 40... Kf4 {[%clk 0:00:04.9]} 41. Kc2
{[%clk 0:00:26]} 41... e4 {[%clk 0:00:02.4]} 42. Bd4 {[%clk 0:00:26.2]} 42... c5
{[%clk 0:00:02.9]} 43. Rf8+ {[%clk 0:00:26.1]} 43... Kg4 {[%clk 0:00:03.3]} 44.
Be3 {[%clk 0:00:26.2]} 44... b6 {[%clk 0:00:04.7]} 45. Rf7 {[%clk 0:00:25.1]}
45... a6 {[%clk 0:00:05.2]} 46. Rf6 {[%clk 0:00:25.4]} 46... b5 {[%clk 0:00:06]}
47. Kc3 {[%clk 0:00:21.5]} 47... b4+ {[%clk 0:00:05.9]} 48. Kc2 {[%clk
0:00:22.2]} 48... a5 {[%clk 0:00:07.8]} 49. Ra6 {[%clk 0:00:21.6]} 49... b3+
{[%clk 0:00:07.6]} 50. Kxb3 {[%clk 0:00:23]} 50... Kf3 {[%clk 0:00:06.9]} 51.
Bd2 {[%clk 0:00:23.1]} 51... e3 {[%clk 0:00:06]} 52. Bc3 {[%clk 0:00:22.9]}
52... e2 {[%clk 0:00:05.9]} 53. Rf6+ {[%clk 0:00:23.6]} 53... Ke3 {[%clk
0:00:05.8]} 54. Re6+ {[%clk 0:00:24.5]} 54... Kf3 {[%clk 0:00:06.7]} 55. Re8
{[%clk 0:00:25.2]} 55... Nc1+ {[%clk 0:00:07.2]} 56. Kc2 {[%clk 0:00:26]} 56...
Nxa2 {[%clk 0:00:08.3]} 57. Bxa5 {[%clk 0:00:26.4]} 57... Nb4+ {[%clk 0:00:09]}
58. Bxb4 {[%clk 0:00:27.5]} 58... cxb4 {[%clk 0:00:10.9]} 59. Kb3 {[%clk
0:00:28.4]} 59... Kf2 {[%clk 0:00:10.6]} 60. Rxe2+ {[%clk 0:00:28.7]} 60... Kxe2
{[%clk 0:00:11.4]} 61. c5 {[%clk 0:00:30.6]} 61... Ke3 {[%clk 0:00:12.9]} 62. c6
{[%clk 0:00:32.5]} 62... Kd4 {[%clk 0:00:13.3]} 63. c7 {[%clk 0:00:34.4]} 1-0

[Event "*** MasterClass Titled Tuesday Blitz"]
[Site "Chess.com"]
[Date "2017.11.07"]
[Round "6"]
[White "Bad4life"]
[Black "StoreySniper"]
[Result "0-1"]
[WhiteElo "2376"]
[BlackElo "2297"]
[TimeControl "180+2"]
[EndTime "15:30:53 PST"]
[Termination "StoreySniper won by resignation"]

1. e4 {[%clk 0:03:01.9]} 1... g6 {[%clk 0:02:58.9]} 2. d4 {[%clk 0:03:02.2]}
2... Bg7 {[%clk 0:03:00.7]} 3. Nc3 {[%clk 0:03:03.4]} 3... c5 {[%clk 0:03:01]}
4. dxc5 {[%clk 0:03:05]} 4... Bxc3+ {[%clk 0:03:01.5]} 5. bxc3 {[%clk
0:03:06.6]} 5... Nf6 {[%clk 0:03:02.8]} 6. Qd4 {[%clk 0:03:05.7]} 6... Nc6
{[%clk 0:03:01.5]} 7. Qa4 {[%clk 0:03:03.2]} 7... Qc7 {[%clk 0:02:53.5]} 8. Nf3
{[%clk 0:02:59.7]} 8... O-O {[%clk 0:02:36.5]} 9. Bd3 {[%clk 0:02:59.1]} 9... b6
{[%clk 0:02:22.2]} 10. Bh6 {[%clk 0:02:52.7]} 10... Re8 {[%clk 0:02:13.7]} 11.
cxb6 {[%clk 0:02:47.9]} 11... Qxb6 {[%clk 0:02:13.5]} 12. O-O {[%clk 0:02:45.1]}
12... Rb8 {[%clk 0:02:01.7]} 13. e5 {[%clk 0:02:42.2]} 13... Nd5 {[%clk
0:01:54.5]} 14. Qh4 {[%clk 0:02:37.6]} 14... Nd8 {[%clk 0:01:25.6]} 15. c4
{[%clk 0:02:24.1]} 15... Nb4 {[%clk 0:01:22.1]} 16. Rab1 {[%clk 0:02:20.8]}
16... Qc7 {[%clk 0:01:15.6]} 17. Bf5 {[%clk 0:01:58.7]} 17... Rb6 {[%clk
0:00:48.2]} 18. Be3 {[%clk 0:01:20.5]} 18... Nxa2 {[%clk 0:00:19.6]} 19. Rxb6
{[%clk 0:01:12.5]} 19... axb6 {[%clk 0:00:20.2]} 20. e6 {[%clk 0:01:11]} 20...
dxe6 {[%clk 0:00:13.3]} 21. Ng5 {[%clk 0:01:06.2]} 21... h5 {[%clk 0:00:13.3]}
22. Bg4 {[%clk 0:01:03.9]} 22... Qe5 {[%clk 0:00:10.9]} 23. Bxh5 {[%clk
0:00:56]} 23... gxh5 {[%clk 0:00:11.9]} 24. Bd4 {[%clk 0:00:46.5]} 24... Qf5
{[%clk 0:00:04.9]} 25. Qxh5 {[%clk 0:00:45.5]} 25... e5 {[%clk 0:00:05.7]} 26.
Bxb6 {[%clk 0:00:39.9]} 26... Ne6 {[%clk 0:00:04.8]} 27. h4 {[%clk 0:00:25]}
27... Nxg5 {[%clk 0:00:05.4]} 28. hxg5 {[%clk 0:00:25.1]} 28... Qg6 {[%clk
0:00:06.9]} 29. Qxg6+ {[%clk 0:00:23]} 29... fxg6 {[%clk 0:00:07.6]} 30. Ba5
{[%clk 0:00:24.5]} 30... Be6 {[%clk 0:00:06.8]} 31. Re1 {[%clk 0:00:21.2]} 31...
Bxc4 {[%clk 0:00:06.4]} 32. Rxe5 {[%clk 0:00:22.4]} 32... e6 {[%clk 0:00:06]}
33. Bd2 {[%clk 0:00:20.2]} 33... Rc8 {[%clk 0:00:06.6]} 34. Ra5 {[%clk
0:00:19.7]} 34... Kf7 {[%clk 0:00:07.6]} 35. Ra7+ {[%clk 0:00:20.4]} 35... Ke8
{[%clk 0:00:08.9]} 36. Kh2 {[%clk 0:00:21.4]} 36... Rd8 {[%clk 0:00:08.3]} 37.
Ba5 {[%clk 0:00:21.7]} 37... Rd7 {[%clk 0:00:09.3]} 38. Ra8+ {[%clk 0:00:22.4]}
38... Kf7 {[%clk 0:00:10.7]} 39. Kg3 {[%clk 0:00:22.3]} 39... Nc1 {[%clk
0:00:11.2]} 40. Rh8 {[%clk 0:00:17.8]} 40... Ne2+ {[%clk 0:00:12.3]} 41. Kf3
{[%clk 0:00:15.9]} 41... Nd4+ {[%clk 0:00:12.9]} 42. Ke4 {[%clk 0:00:17.1]}
42... Nf5 {[%clk 0:00:12.8]} 43. Rh7+ {[%clk 0:00:15.5]} 43... Ng7 {[%clk
0:00:13.6]} 44. Bc3 {[%clk 0:00:16.7]} 44... Kg8 {[%clk 0:00:14]} 45. Rh6 {[%clk
0:00:16.1]} 45... Bd5+ {[%clk 0:00:10.4]} 46. Ke5 {[%clk 0:00:08.3]} 46... Kf7
{[%clk 0:00:10]} 47. Rh7 {[%clk 0:00:07.9]} 47... Rc7 {[%clk 0:00:10.9]} 48. Bd4
{[%clk 0:00:04.5]} 48... Kg8 {[%clk 0:00:10.2]} 49. Rh6 {[%clk 0:00:04.6]} 49...
Nf5 {[%clk 0:00:10]} 50. Rxg6+ {[%clk 0:00:05.5]} 50... Kh7 {[%clk 0:00:11.3]}
51. Rf6 {[%clk 0:00:05.8]} 51... Nxd4 {[%clk 0:00:12.1]} 52. Kxd4 {[%clk
0:00:07.7]} 52... Rxc2 {[%clk 0:00:13.1]} 53. Rh6+ {[%clk 0:00:08.5]} 53... Kg7
{[%clk 0:00:13.5]} 54. f4 {[%clk 0:00:09.5]} 54... Rxg2 {[%clk 0:00:13.8]} 55.
Ke5 {[%clk 0:00:10.9]} 55... Re2+ {[%clk 0:00:14.2]} 56. Kd6 {[%clk 0:00:12.1]}
56... Re4 {[%clk 0:00:15.3]} 57. Rf6 {[%clk 0:00:13.1]} 57... Ra4 {[%clk
0:00:15.3]} 58. Ke5 {[%clk 0:00:13.7]} 58... Re4+ {[%clk 0:00:16]} 59. Kd6
{[%clk 0:00:15.2]} 59... Ra4 {[%clk 0:00:17.7]} 60. Ke5 {[%clk 0:00:16.5]} 60...
Ra5 {[%clk 0:00:18.7]} 61. Kd6 {[%clk 0:00:15.4]} 61... Bb3 {[%clk 0:00:17.7]}
62. Ke7 {[%clk 0:00:15.3]} 62... Ra7+ {[%clk 0:00:17.9]} 63. Kd6 {[%clk
0:00:15.9]} 63... Rf7 {[%clk 0:00:17.7]} 64. Ke5 {[%clk 0:00:03.2]} 64... Rd7
{[%clk 0:00:14.2]} 65. Rh6 {[%clk 0:00:02.9]} 65... Rd5+ {[%clk 0:00:14.6]} 66.
Ke4 {[%clk 0:00:04.8]} 66... Rc5 {[%clk 0:00:14.5]} 67. Kd4 {[%clk 0:00:05.3]}
67... Rd5+ {[%clk 0:00:14.7]} 68. Ke4 {[%clk 0:00:06.8]} 68... Bc2+ {[%clk
0:00:16]} 69. Ke3 {[%clk 0:00:07.7]} 69... Bf5 {[%clk 0:00:17.2]} 70. Rh4 {[%clk
0:00:07.3]} 70... Rd3+ {[%clk 0:00:18]} 71. Ke2 {[%clk 0:00:08.9]} 71... Rh3
{[%clk 0:00:18.2]} 72. Kf2 {[%clk 0:00:10.2]} 72... Rxh4 {[%clk 0:00:18.8]} 0-1